[Event "ESP-chT Div I 2018"]
[Site "Linares"]
[Date "2018.08.12"]
[Round "7"]
[White "Plazuelo Pascual, Juan"]
[Black "Alonso Moyano, Jonathan"]
[Result "1-0"]
[ECO "A80"]
[WhiteElo "2429"]
[BlackElo "2388"]
[Annotator "NA"]
[PlyCount "141"]
[EventDate "2018.08.06"]
[EventType "team-tourn"]
[EventCountry "ESP"]
[SourceTitle "playchess.com"]
[Source "ChessBase"]
[SourceQuality "1"]
[TimeControl "40/5400+30:1800+30"]

1. d4 {[%emt 0:00:00]} f5 {[%emt 0:00:00]} 2. Nc3 {[%emt 0:00:00]} Nf6 {[%emt 0:00:00]} 3. Bg5 {[%emt 0:00:00]} d5 {[%emt 0:00:13]} 4. e3 {[%emt 0:00:00]} e6 {[%emt 0:00:59]} 5. g4 {[%emt 0:00:05]} Be7 {[%emt 0:02:39]} 6. gxf5 {[%emt 0:00:16]} exf5 {[%emt 0:00:05]} 7. Qf3 {[%emt 0:01:08]} c6 {[%emt 0:01:15]} 8. Bxf6 {[%emt 0:00:11]} Bxf6 {[%emt 0:00:07]} 9. h4 {[%emt 0:00:03]} g6 {[%emt 0:09:14]} 10. Qg3 {[%emt 0:08:22]} Be6 {[%emt 0:05:38]} 11. O-O-O {[%emt 0:02:17]} Nd7 {[%emt 0:00:44]} 12. Nge2 {[%emt 0:07:07]} Qe7 {[%emt 0:01:07]} 13. Nf4 {[%emt 0:00:32]} O-O-O {[%emt 0:04:30]} 14. Bd3 {[%emt 0:01:41]} Bf7 {[%emt 0:03:12]} 15. Rdg1 {[%emt 0:05:02]} Rhg8 {[%emt 0:04:10]} 16. Nb1 {[%emt 0:15:17]} Bh8 {[%emt 0:13:00]} 17. Nd2 {[%emt 0:08:27]} Nf6 {[%emt 0:07:16]} 18. Qh2 {[%emt 0:07:25]} Ne4 {[%emt 0:09:17]} 19. c3 {[%emt 0:06:00]} h6 {[%emt 0:08:53]} 20. Ne2 {[%emt 0:03:35]} Bf6 {[%emt 0:08:46]} 21. Qf4 {[%emt 0:05:28]} Be6 {[%emt 0:14:29]} 22. Qh2 {[%emt 0:03:35]} g5 {[%emt 0:00:45]} 23. hxg5 {[%emt 0:00:53]} hxg5 {[%emt 0:00:02]} 24. Qg2 {[%emt 0:02:39]} Rh8 {[%emt 0:01:22]} 25. Nf3 {[%emt 0:03:51]} g4 {[%emt 0:01:51]} 26. Ne5 {[%emt 0:01:08]} Rxh1 {[%emt 0:02:26]} 27. Rxh1 {[%emt 0:00:04]} Bxe5 {[%emt 0:00:27]} 28. dxe5 {[%emt 0:00:18]} Qg7 {[%emt 0:00:30]} 29. Qh2 {[%emt 0:06:33]} Bd7 {[%emt 0:00:21]} 30. Nd4 {[%emt 0:04:16]} g3 {[%emt 0:00:06]} 31. fxg3 {[%emt 0:01:09]} Qxe5 {[%emt 0:00:14]} 32. Bxe4 {[%emt 0:00:33]} fxe4 {[%emt 0:00:15]} 33. Ne2 {[%emt 0:00:16]} Bg4 {[%emt 0:00:51]} 34. Nf4 {[%emt 0:00:28]} Rg8 {[%emt 0:00:55]} 35. Qh7 {[%emt 0:01:49]} Qg7 {[%emt 0:00:29]} 36. Qxg7 {[%emt 0:02:39]} Rxg7 {[%emt 0:00:01]} 37. Kd2 {[%emt 0:00:07]} b5 {[%emt 0:01:40]} 38. Ke1 {[%emt 0:00:23]} b4 {[%emt 0:00:31]} 39. cxb4 {[%emt 0:00:37]} Bf3 {[%emt 0:00:31]} 40. Rh8+ {[%emt 0:00:05]} Kb7 {[%emt 0:00:04]} 41. Kf2 {[%emt 0:30:11]} Bg4 {[%emt 0:30:41]} 42. Rh6 {[%emt 0:00:35]} Bd7 {[%emt 0:00:46]} 43. Rg6 {[%emt 0:01:26]} Rf7 {[%emt 0:00:22]} 44. Kg2 {[%emt 0:00:32]} Kb6 {[%emt 0:00:40]} 45. Nxd5+ {[%emt 0:00:49]} Kb5 {[%emt 0:00:01]} 46. Nc3+ {[%emt 0:01:06]} Kxb4 {[%emt 0:00:15]} 47. Rd6 {[%emt 0:01:03]} c5 {[%emt 0:00:37]} 48. Nxe4 {[%emt 0:00:30]} Bc8 {[%emt 0:00:34]} 49. Nf6 {[%emt 0:01:07]} c4 {[%emt 0:00:42]} 50. e4 {[%emt 0:00:26]} Bb7 {[%emt 0:00:35]} 51. Re6 {[%emt 0:00:54]} Kc5 {[%emt 0:00:33]} 52. g4 {[%emt 0:01:39]} Bc8 {[%emt 0:00:48]} 53. Re5+ {[%emt 0:00:01]} Kd4 {[%emt 0:00:21]} 54. Rd5+ {[%emt 0:00:06]} Ke3 {[%emt 0:00:04]} 55. g5 {[%emt 0:00:22]} Rb7 {[%emt 0:00:13]} 56. Rc5 {[%emt 0:01:15]} Rxb2+ {[%emt 0:00:07]} 57. Kg3 {[%emt 0:00:02]} Be6 {[%emt 0:00:40]} 58. Rc6 {[%emt 0:00:19]} Rb6 {[%emt 0:00:18]} 59. Nd5+ {[%emt 0:00:24]} Bxd5 {[%emt 0:00:52]} 60. exd5 {[%emt 0:00:04]} Ke4 {[%emt 0:01:18]} 61. Rxc4+ {[%emt 0:02:21]} Kxd5 {[%emt 0:00:01]} 62. Rf4 {[%emt 0:00:20]} Ke5 {[%emt 0:00:47]} 63. Rf2 {[%emt 0:00:20]} a5 {[%emt 0:00:42]} 64. Kg4 {[%emt 0:00:33]} Rb4+ {[%emt 0:00:29]} 65. Kh5 {[%emt 0:00:04]} Rb1 {[%emt 0:00:24]} 66. g6 {[%emt 0:00:18]} Rh1+ {[%emt 0:00:36]} 67. Kg5 {[%emt 0:00:03]} Rg1+ {[%emt 0:00:07]} 68. Kh6 {[%emt 0:00:05]} Rh1+ {[%emt 0:00:32]} 69. Kg7 {[%emt 0:00:03]} a4 {[%emt 0:00:28]} 70. Kf7 {[%emt 0:00:19]} Rb1 {[%emt 0:00:50]} 71. g7 {[%emt 0:00:10]} 1-0

[Event "ESP-chT Div I 2018"]
[Site "Linares"]
[Date "2018.08.12"]
[Round "7"]
[White "Barbot, Pierre"]
[Black "Moreno Ruiz, Javier"]
[Result "1-0"]
[ECO "D38"]
[WhiteElo "2420"]
[BlackElo "2450"]
[Annotator "ChessBase"]
[PlyCount "117"]
[EventDate "2018.08.06"]
[EventType "team-tourn"]
[EventCountry "ESP"]
[SourceTitle "playchess.com"]
[Source "ChessBase"]
[SourceQuality "1"]
[TimeControl "40/5400+30:1800+30"]

1. d4 {[%emt 0:02:33]} Nf6 {[%emt 0:00:00]} 2. c4 {[%emt 0:00:03]} e6 {[%emt 0:00:00]} 3. Nf3 {[%emt 0:00:03]} d5 {[%emt 0:00:00]} 4. Nc3 {[%emt 0:00:04]} Bb4 {[%emt 0:00:05]} 5. Bg5 {[%emt 0:00:04]} Nbd7 {[%emt 0:02:28]} 6. cxd5 {[%emt 0:00:05]} exd5 {[%emt 0:00:04]} 7. e3 {[%emt 0:00:03]} c5 {[%emt 0:00:05]} 8. Bd3 {[%emt 0:00:04]} Qa5 {[%emt 0:00:09]} 9. O-O {[%emt 0:00:03]} c4 {[%emt 0:00:27]} 10. Bf5 {[%emt 0:00:04]} O-O {[%emt 0:00:12]} 11. Qc1 {[%emt 0:00:01]} Re8 {[%emt 0:03:31]} 12. Bh4 {[%emt 0:00:20]} Bxc3 {[%emt 0:06:52]} 13. Qxc3 {[%emt 0:00:05]} Qxc3 {[%emt 0:00:14]} 14. bxc3 {[%emt 0:00:04]} Ne4 {[%emt 0:00:26]} 15. Bxe4 {[%emt 0:00:05]} Rxe4 {[%emt 0:01:29]} 16. Rfb1 {[%emt 0:00:22]} b6 {[%emt 0:01:36]} 17. a4 {[%emt 0:00:43]} a5 {[%emt 0:10:37]} 18. Bg3 {[%emt 0:00:05]} Re6 {[%emt 0:01:08]} 19. Rb5 {[%emt 0:20:02]} Bb7 {[%emt 0:01:28]} 20. Ne5 {[%emt 0:00:04]} Nf6 {[%emt 0:22:55]} 21. Rab1 {[%emt 0:08:24]} Ne4 {[%emt 0:06:24]} 22. Rxb6 {[%emt 0:00:36]} Rxb6 {[%emt 0:00:13]} 23. Rxb6 {[%emt 0:00:10]} Bc8 {[%emt 0:00:12]} 24. f3 {[%emt 0:19:50]} Nxc3 {[%emt 0:00:12]} 25. Rd6 {[%emt 0:00:04]} Be6 {[%emt 0:00:43]} 26. Be1 {[%emt 0:00:40]} Nxa4 {[%emt 0:00:36]} 27. e4 {[%emt 0:00:04]} c3 {[%emt 0:19:51]} 28. exd5 {[%emt 0:00:26]} c2 {[%emt 0:00:20]} 29. Bd2 {[%emt 0:00:21]} Bf5 {[%emt 0:00:18]} 30. g4 {[%emt 0:01:29]} Bg6 {[%emt 0:01:11]} 31. Rc6 {[%emt 0:00:34]} f6 {[%emt 0:02:57]} 32. Nxg6 {[%emt 0:00:56]} hxg6 {[%emt 0:00:04]} 33. Rxc2 {[%emt 0:07:47]} Nb6 {[%emt 0:00:17]} 34. d6 {[%emt 0:00:05]} Kf7 {[%emt 0:00:35]} 35. Rc7+ {[%emt 0:02:34]} Ke6 {[%emt 0:00:16]} 36. Rxg7 {[%emt 0:00:09]} g5 {[%emt 0:00:42]} 37. Rb7 {[%emt 0:01:35]} Nc4 {[%emt 0:02:19]} 38. Bc3 {[%emt 0:00:35]} Nxd6 {[%emt 0:01:05]} 39. Rb6 {[%emt 0:00:30]} Kd5 {[%emt 0:00:28]} 40. Kf2 {[%emt 0:01:01]} a4 {[%emt 0:04:52]} 41. Bb4 {[%emt 0:32:45]} Nc4 {[%emt 0:31:46]} 42. Rxf6 {[%emt 0:00:12]} Kxd4 {[%emt 0:03:58]} 43. Rf5 {[%emt 0:05:56]} a3 {[%emt 0:03:44]} 44. Bc5+ {[%emt 0:04:24]} Kc3 {[%emt 0:02:25]} 45. Bxa3 {[%emt 0:00:04]} Rxa3 {[%emt 0:00:09]} 46. Rxg5 {[%emt 0:00:05]} Kd4 {[%emt 0:01:18]} 47. h4 {[%emt 0:00:34]} Ne3 {[%emt 0:01:34]} 48. Rg8 {[%emt 0:02:52]} Ra2+ {[%emt 0:00:34]} 49. Kg3 {[%emt 0:00:06]} Rg2+ {[%emt 0:00:56]} 50. Kf4 {[%emt 0:02:00]} Rh2 {[%emt 0:00:35]} 51. h5 {[%emt 0:00:40]} Rh3 {[%emt 0:00:16]} 52. Rf8 {[%emt 0:01:13]} Nd5+ {[%emt 0:00:43]} 53. Kg5 {[%emt 0:00:06]} Ke5 {[%emt 0:00:07]} 54. h6 {[%emt 0:02:21]} Ne7 {[%emt 0:00:56]} 55. f4+ {[%emt 0:00:12]} Ke6 {[%emt 0:00:32]} 56. f5+ {[%emt 0:00:05]} Kd7 {[%emt 0:00:12]} 57. f6 {[%emt 0:02:36]} Nd5 {[%emt 0:00:50]} 58. f7 {[%emt 0:00:35]} Ke7 59. Rd8 1-0

[Event "ESP-chT Div I 2018"]
[Site "Linares"]
[Date "2018.08.12"]
[Round "7"]
[White "Martin Fuentes, Alberto"]
[Black "Franco Alonso, Alejandro"]
[Result "0-1"]
[ECO "B26"]
[WhiteElo "2391"]
[BlackElo "2410"]
[Annotator "NA"]
[PlyCount "100"]
[EventDate "2018.08.06"]
[EventType "team-tourn"]
[EventCountry "ESP"]
[SourceTitle "playchess.com"]
[Source "ChessBase"]
[SourceQuality "1"]
[TimeControl "40/5400+30:1800+30"]

1. e4 {[%emt 0:04:32]} c5 {[%emt 0:00:00]} 2. Nc3 {[%emt 0:00:07]} Nc6 {[%emt 0:00:00]} 3. g3 {[%emt 0:00:05]} g6 {[%emt 0:00:00]} 4. Bg2 {[%emt 0:00:05]} Bg7 {[%emt 0:00:00]} 5. d3 {[%emt 0:00:14]} d6 {[%emt 0:00:04]} 6. Be3 {[%emt 0:00:38]} Rb8 {[%emt 0:00:10]} 7. Qd2 {[%emt 0:00:07]} b5 {[%emt 0:00:07]} 8. h3 {[%emt 0:00:52]} b4 {[%emt 0:10:36]} 9. Nd1 {[%emt 0:00:05]} Bd7 {[%emt 0:05:02]} 10. Ne2 {[%emt 0:02:57]} Nd4 {[%emt 0:00:27]} 11. f4 {[%emt 0:04:50]} e6 {[%emt 0:02:05]} 12. O-O {[%emt 0:00:45]} Ne7 {[%emt 0:00:11]} 13. g4 {[%emt 0:01:36]} f5 {[%emt 0:06:45]} 14. Ng3 {[%emt 0:02:24]} O-O {[%emt 0:06:36]} 15. gxf5 {[%emt 0:08:41]} exf5 {[%emt 0:02:12]} 16. Kh2 {[%emt 0:00:43]} Qa5 {[%emt 0:05:43]} 17. Bg1 {[%emt 0:10:01]} Bh6 {[%emt 0:13:31]} 18. a3 {[%emt 0:06:36]} fxe4 {[%emt 0:07:12]} 19. Nxe4 {[%emt 0:02:12]} d5 {[%emt 0:16:18]} 20. Ng3 {[%emt 0:11:07]} Qc7 {[%emt 0:01:30]} 21. Be3 {[%emt 0:09:50]} b3 {[%emt 0:01:42]} 22. Rc1 {[%emt 0:05:16]} Nxc2 {[%emt 0:03:31]} 23. Rxc2 {[%emt 0:00:09]} bxc2 {[%emt 0:00:06]} 24. Qxc2 {[%emt 0:00:03]} Bxf4 {[%emt 0:06:23]} 25. Rxf4 {[%emt 0:00:54]} Rxf4 {[%emt 0:00:07]} 26. Qxc5 {[%emt 0:01:25]} Qxc5 {[%emt 0:02:58]} 27. Bxc5 {[%emt 0:00:04]} Rf7 {[%emt 0:00:35]} 28. b4 {[%emt 0:01:12]} a6 {[%emt 0:01:02]} 29. Ne3 {[%emt 0:02:39]} Bc6 {[%emt 0:03:20]} 30. Ng4 {[%emt 0:02:28]} Nf5 {[%emt 0:03:24]} 31. Ne5 {[%emt 0:00:35]} Ba8 {[%emt 0:00:26]} 32. Nxf7 {[%emt 0:02:00]} Kxf7 {[%emt 0:00:04]} 33. Ne2 {[%emt 0:02:47]} d4 {[%emt 0:01:19]} 34. Nxd4 {[%emt 0:01:14]} Nxd4 {[%emt 0:00:14]} 35. Bxd4 {[%emt 0:00:04]} Bxg2 {[%emt 0:00:08]} 36. Kxg2 {[%emt 0:00:05]} Rd8 {[%emt 0:00:06]} 37. Bf2 {[%emt 0:01:01]} Rxd3 {[%emt 0:00:06]} 38. a4 {[%emt 0:00:02]} Ra3 {[%emt 0:00:33]} 39. a5 {[%emt 0:00:38]} Ke6 {[%emt 0:00:22]} 40. Bc5 {[%emt 0:00:06]} Kf5 {[%emt 0:00:52]} 41. Bd6 {[%emt 0:30:12]} Rb3 {[%emt 0:30:43]} 42. Bc5 {[%emt 0:00:10]} Ke4 {[%emt 0:02:04]} 43. Be7 {[%emt 0:00:15]} Kd5 {[%emt 0:00:23]} 44. Bc5 {[%emt 0:00:08]} Kc4 {[%emt 0:00:55]} 45. h4 {[%emt 0:00:05]} Rxb4 {[%emt 0:01:13]} 46. Bxb4 {[%emt 0:00:05]} Kxb4 {[%emt 0:00:03]} 47. Kf3 {[%emt 0:00:05]} Kxa5 {[%emt 0:00:10]} 48. Kf4 {[%emt 0:00:04]} h6 {[%emt 0:00:49]} 49. Ke5 {[%emt 0:00:02]} Kb4 {[%emt 0:00:15]} 50. Kf6 {[%emt 0:00:03]} g5 {[%emt 0:00:05]} 0-1

[Event "ESP-chT Div I 2018"]
[Site "Linares"]
[Date "2018.08.12"]
[Round "7"]
[White "Granero Roca, Antonio"]
[Black "Badillo Ramos, Steve"]
[Result "1-0"]
[ECO "E15"]
[WhiteElo "2383"]
[BlackElo "1901"]
[Annotator "NA"]
[PlyCount "43"]
[EventDate "2018.08.06"]
[EventType "team-tourn"]
[EventCountry "ESP"]
[SourceTitle "playchess.com"]
[Source "ChessBase"]
[SourceQuality "1"]
[TimeControl "40/5400+30:1800+30"]

1. Nf3 {[%emt 0:00:00]} Nf6 {[%emt 0:00:00]} 2. c4 {[%emt 0:00:00]} e6 {[%emt 0:00:11]} 3. d4 {[%emt 0:00:12]} b6 {[%emt 0:02:11]} 4. g3 {[%emt 0:00:56]} Bb4+ {[%emt 0:00:47]} 5. Bd2 {[%emt 0:01:33]} Bxd2+ {[%emt 0:00:23]} 6. Qxd2 {[%emt 0:00:25]} Bb7 {[%emt 0:02:27]} 7. Bg2 {[%emt 0:01:07]} O-O {[%emt 0:11:44]} 8. O-O {[%emt 0:02:06]} d5 {[%emt 0:01:08]} 9. cxd5 {[%emt 0:00:42]} exd5 {[%emt 0:01:00]} 10. Nc3 {[%emt 0:00:18]} Re8 {[%emt 0:02:04]} 11. Qc2 {[%emt 0:02:22]} Nc6 {[%emt 0:06:26]} 12. a3 {[%emt 0:03:58]} a5 {[%emt 0:01:02]} 13. Rac1 {[%emt 0:00:35]} Qe7 {[%emt 0:04:12]} 14. e3 {[%emt 0:07:30]} Rad8 {[%emt 0:02:41]} 15. Rfe1 {[%emt 0:01:36]} Qd7 {[%emt 0:04:03]} 16. Ne2 {[%emt 0:01:56]} Re7 {[%emt 0:07:35]} 17. Nf4 {[%emt 0:01:33]} Ne8 {[%emt 0:01:36]} 18. Ng5 {[%emt 0:01:35]} g6 {[%emt 0:00:31]} 19. Nxd5 {[%emt 0:00:58]} Nxd4 {[%emt 0:00:29]} 20. Nxe7+ {[%emt 0:00:35]} Qxe7 {[%emt 0:00:11]} 21. exd4 {[%emt 0:00:22]} Qxg5 {[%emt 0:00:08]} 22. Bxb7 {[%emt 0:00:10]} 1-0

[Event "ESP-chT Div I 2018"]
[Site "Linares"]
[Date "2018.08.12"]
[Round "7"]
[White "Martin Duque, Jesus"]
[Black "Ortega Hermida, Daniel"]
[Result "1-0"]
[ECO "C50"]
[WhiteElo "2378"]
[BlackElo "2334"]
[Annotator "NA"]
[PlyCount "153"]
[EventDate "2018.08.06"]
[EventType "team-tourn"]
[EventCountry "ESP"]
[SourceTitle "playchess.com"]
[Source "ChessBase"]
[SourceQuality "1"]
[TimeControl "40/5400+30:1800+30"]

1. e4 {[%emt 0:00:00]} e5 {[%emt 0:02:17]} 2. Nf3 {[%emt 0:00:00]} Nc6 {[%emt 0:00:07]} 3. Bc4 {[%emt 0:00:00]} Nf6 {[%emt 0:00:06]} 4. d3 {[%emt 0:00:00]} Bc5 {[%emt 0:00:20]} 5. O-O {[%emt 0:00:00]} d6 {[%emt 0:00:45]} 6. c3 {[%emt 0:00:00]} a5 {[%emt 0:00:16]} 7. a4 {[%emt 0:00:09]} h6 {[%emt 0:00:55]} 8. Re1 {[%emt 0:03:58]} O-O {[%emt 0:02:44]} 9. Nbd2 {[%emt 0:00:50]} Be6 {[%emt 0:06:37]} 10. Bb5 {[%emt 0:00:29]} Ne7 {[%emt 0:02:35]} 11. d4 {[%emt 0:00:35]} exd4 {[%emt 0:00:04]} 12. cxd4 {[%emt 0:00:03]} Bb4 {[%emt 0:00:04]} 13. Re3 {[%emt 0:14:30]} Ng6 {[%emt 0:09:19]} 14. h3 {[%emt 0:04:14]} c6 {[%emt 0:05:18]} 15. Bf1 {[%emt 0:01:22]} Re8 {[%emt 0:05:03]} 16. b3 {[%emt 0:01:28]} d5 {[%emt 0:05:17]} 17. e5 {[%emt 0:00:14]} Nd7 {[%emt 0:00:05]} 18. Bb2 {[%emt 0:01:04]} f5 {[%emt 0:03:32]} 19. exf6 {[%emt 0:06:05]} Qxf6 {[%emt 0:11:19]} 20. Qe1 {[%emt 0:04:46]} Qf7 {[%emt 0:05:51]} 21. Ba3 {[%emt 0:06:19]} Bxa3 {[%emt 0:01:10]} 22. Rxa3 {[%emt 0:00:01]} Bf5 {[%emt 0:00:16]} 23. Ra1 {[%emt 0:02:00]} Re7 {[%emt 0:11:45]} 24. Rxe7 {[%emt 0:01:36]} Qxe7 {[%emt 0:00:05]} 25. Qxe7 {[%emt 0:01:08]} Nxe7 {[%emt 0:00:05]} 26. g4 {[%emt 0:00:33]} Be6 {[%emt 0:01:14]} 27. Re1 {[%emt 0:01:35]} Kf7 {[%emt 0:00:27]} 28. Bd3 {[%emt 0:00:45]} Re8 {[%emt 0:01:05]} 29. Nf1 {[%emt 0:03:55]} Ng6 {[%emt 0:02:36]} 30. Ne3 {[%emt 0:02:45]} Nf4 {[%emt 0:03:15]} 31. Bf1 {[%emt 0:01:07]} Kf6 {[%emt 0:02:17]} 32. Kh2 {[%emt 0:01:11]} Rc8 {[%emt 0:02:34]} 33. Rc1 {[%emt 0:05:35]} g5 {[%emt 0:04:32]} 34. Ne1 {[%emt 0:02:11]} Nf8 {[%emt 0:00:51]} 35. Nd3 {[%emt 0:00:49]} Nxd3 {[%emt 0:05:34]} 36. Bxd3 {[%emt 0:00:02]} Ng6 {[%emt 0:01:56]} 37. Ng2 {[%emt 0:03:48]} b6 {[%emt 0:02:12]} 38. Re1 {[%emt 0:05:07]} Re8 {[%emt 0:00:24]} 39. Bf5 {[%emt 0:04:46]} Re7 {[%emt 0:02:03]} 40. Rc1 {[%emt 0:00:41]} Rc7 {[%emt 0:00:02]} 41. Ne3 {[%emt 0:32:25]} Nf4 {[%emt 0:30:09]} 42. Bxe6 {[%emt 0:00:47]} Kxe6 {[%emt 0:00:38]} 43. Nf5 {[%emt 0:02:35]} c5 {[%emt 0:00:57]} 44. Rc3 {[%emt 0:01:54]} h5 {[%emt 0:02:01]} 45. Re3+ {[%emt 0:03:29]} Kf6 {[%emt 0:00:06]} 46. Nd6 {[%emt 0:00:02]} Re7 {[%emt 0:01:21]} 47. gxh5 {[%emt 0:00:22]} Rxe3 {[%emt 0:00:38]} 48. fxe3 {[%emt 0:00:17]} Nxh5 {[%emt 0:00:01]} 49. dxc5 {[%emt 0:01:07]} bxc5 {[%emt 0:00:06]} 50. Nb7 {[%emt 0:00:01]} c4 {[%emt 0:01:29]} 51. Nxa5 {[%emt 0:01:25]} c3 {[%emt 0:00:34]} 52. b4 {[%emt 0:00:01]} Ke5 {[%emt 0:00:08]} 53. Nb3 {[%emt 0:01:52]} c2 {[%emt 0:00:49]} 54. a5 {[%emt 0:00:41]} Kd6 {[%emt 0:00:28]} 55. b5 {[%emt 0:01:07]} Nf6 {[%emt 0:00:17]} 56. b6 {[%emt 0:03:57]} Ne4 {[%emt 0:00:13]} 57. Kg2 {[%emt 0:02:08]} Nd2 {[%emt 0:00:44]} 58. Nc1 {[%emt 0:00:04]} Kc6 {[%emt 0:00:29]} 59. Kg3 {[%emt 0:01:16]} Ne4+ {[%emt 0:00:27]} 60. Kf3 {[%emt 0:01:21]} Kb7 {[%emt 0:00:36]} 61. Ke2 {[%emt 0:00:53]} Nd6 {[%emt 0:00:44]} 62. Kd3 {[%emt 0:01:25]} Nc4 {[%emt 0:00:18]} 63. Nb3 {[%emt 0:00:27]} c1=Q {[%emt 0:00:46]} 64. Nxc1 {[%emt 0:00:01]} Nxa5 {[%emt 0:00:23]} 65. Kd4 {[%emt 0:00:01]} Kxb6 {[%emt 0:00:38]} 66. Kxd5 {[%emt 0:00:02]} Kc7 {[%emt 0:00:23]} 67. Nd3 {[%emt 0:00:31]} Nc6 {[%emt 0:00:37]} 68. Ke6 {[%emt 0:00:15]} Kd8 {[%emt 0:00:31]} 69. Kf6 {[%emt 0:00:08]} Ne7 {[%emt 0:00:14]} 70. Kxg5 {[%emt 0:00:12]} Kd7 {[%emt 0:00:08]} 71. Nf4 {[%emt 0:00:16]} Kd6 {[%emt 0:00:17]} 72. Kf6 {[%emt 0:00:12]} Ng8+ {[%emt 0:00:09]} 73. Kf7 {[%emt 0:00:28]} Ne7 {[%emt 0:00:25]} 74. e4 {[%emt 0:00:34]} Nc6 {[%emt 0:00:23]} 75. Ng6 {[%emt 0:00:17]} Nd4 {[%emt 0:00:39]} 76. h4 {[%emt 0:00:16]} Nf3 {[%emt 0:00:29]} 77. Kf6 {[%emt 0:00:08] Kd5} 1-0

[Event "ESP-chT Div I 2018"]
[Site "Linares"]
[Date "2018.08.12"]
[Round "7"]
[White "Bergez, Luc"]
[Black "Rubio Mejia, Luis Ignacio"]
[Result "1/2-1/2"]
[ECO "B52"]
[WhiteElo "2327"]
[BlackElo "2442"]
[Annotator "NA"]
[PlyCount "98"]
[EventDate "2018.08.06"]
[EventType "team-tourn"]
[EventCountry "ESP"]
[SourceTitle "playchess.com"]
[Source "ChessBase"]
[SourceQuality "1"]
[TimeControl "40/5400+30:1800+30"]

1. e4 {[%emt 0:00:00]} c5 {[%emt 0:00:00]} 2. Nf3 {[%emt 0:00:00]} d6 {[%emt 0:00:00]} 3. Bb5+ {[%emt 0:00:04]} Bd7 {[%emt 0:00:00]} 4. Bxd7+ {[%emt 0:00:12]} Qxd7 {[%emt 0:00:06]} 5. O-O {[%emt 0:00:14]} Nf6 {[%emt 0:00:12]} 6. Re1 {[%emt 0:00:15]} Nc6 {[%emt 0:00:55]} 7. c3 {[%emt 0:00:14]} e6 {[%emt 0:02:10]} 8. d4 {[%emt 0:00:23]} cxd4 {[%emt 0:00:43]} 9. cxd4 {[%emt 0:00:11]} d5 {[%emt 0:00:11]} 10. e5 {[%emt 0:00:10]} Ng8 {[%emt 0:01:51]} 11. Nbd2 {[%emt 0:07:35]} Bb4 {[%emt 0:06:44]} 12. Re3 {[%emt 0:19:06]} Nge7 {[%emt 0:15:56]} 13. Nf1 {[%emt 0:03:54]} Nf5 {[%emt 0:05:45]} 14. Rd3 {[%emt 0:00:26]} O-O-O {[%emt 0:04:05]} 15. a3 {[%emt 0:03:31]} Be7 {[%emt 0:01:55]} 16. b4 {[%emt 0:08:02]} Kb8 {[%emt 0:03:45]} 17. N1d2 {[%emt 0:00:23]} h5 {[%emt 0:14:19]} 18. Nb3 {[%emt 0:00:39]} Rc8 {[%emt 0:00:20]} 19. b5 {[%emt 0:13:04]} Nd8 {[%emt 0:00:38]} 20. a4 {[%emt 0:00:16]} f6 {[%emt 0:12:06]} 21. Bf4 {[%emt 0:05:21]} Ka8 {[%emt 0:00:41]} 22. Rc1 {[%emt 0:00:26]} Nf7 {[%emt 0:02:19]} 23. Rdc3 {[%emt 0:08:51]} Rxc3 {[%emt 0:12:24]} 24. Rxc3 {[%emt 0:00:02]} Rc8 {[%emt 0:01:19]} 25. Qc2 {[%emt 0:00:49]} Rxc3 {[%emt 0:03:34]} 26. Qxc3 {[%emt 0:00:10]} g5 {[%emt 0:01:26]} 27. exf6 {[%emt 0:06:31]} Bxf6 {[%emt 0:00:09]} 28. Be5 {[%emt 0:15:25]} Bd8 {[%emt 0:05:59]} 29. h3 {[%emt 0:02:58]} g4 {[%emt 0:02:31]} 30. hxg4 {[%emt 0:00:08]} hxg4 {[%emt 0:00:03]} 31. Nh2 {[%emt 0:03:19]} Nxe5 {[%emt 0:00:38]} 32. dxe5 {[%emt 0:00:02]} g3 {[%emt 0:00:05]} 33. fxg3 {[%emt 0:00:21]} Bb6+ {[%emt 0:00:03]} 34. Kf1 {[%emt 0:01:43]} Kb8 {[%emt 0:00:49]} 35. g4 {[%emt 0:01:22]} Ne3+ {[%emt 0:01:27]} 36. Ke2 {[%emt 0:00:11]} Nxg2 {[%emt 0:02:01]} 37. Qf3 {[%emt 0:00:45]} Nh4 {[%emt 0:00:27]} 38. Qf8+ {[%emt 0:00:27]} Qc8 {[%emt 0:00:26]} 39. Qxc8+ {[%emt 0:00:22]} Kxc8 {[%emt 0:00:03]} 40. a5 {[%emt 0:01:21]} Bc7 {[%emt 0:01:16]} 41. Nf3 {[%emt 0:30:42]} Nxf3 {[%emt 0:30:31]} 42. Kxf3 {[%emt 0:00:01]} Bxe5 {[%emt 0:00:07]} 43. Nc5 {[%emt 0:00:18]} Bc3 {[%emt 0:00:29]} 44. Nxe6 {[%emt 0:00:29]} Bxa5 {[%emt 0:00:23]} 45. Nf4 {[%emt 0:00:15]} Kd7 {[%emt 0:00:58]} 46. Nxd5 {[%emt 0:00:02]} Kd6 {[%emt 0:00:26]} 47. Ke4 {[%emt 0:00:06]} Bd8 {[%emt 0:00:17]} 48. Kd4 {[%emt 0:00:20]} a6 {[%emt 0:00:47]} 49. bxa6 {[%emt 0:00:08]} bxa6 {[%emt 0:00:04]} 1/2-1/2

[Event "ESP-chT Div I 2018"]
[Site "Linares"]
[Date "2018.08.12"]
[Round "7"]
[White "Gutierrez Olivares, Daniel"]
[Black "Ortega Ruiz, Jose Miguel"]
[Result "1/2-1/2"]
[ECO "A20"]
[WhiteElo "2297"]
[BlackElo "2280"]
[Annotator "NA"]
[PlyCount "45"]
[EventDate "2018.08.06"]
[EventType "team-tourn"]
[EventCountry "ESP"]
[SourceTitle "playchess.com"]
[Source "ChessBase"]
[SourceQuality "1"]
[TimeControl "40/5400+30:1800+30"]

1. c4 {[%emt 0:02:07]} e5 {[%emt 0:00:00]} 2. d3 {[%emt 0:00:42]} Nf6 {[%emt 0:00:00]} 3. Nf3 {[%emt 0:00:54]} Nc6 {[%emt 0:00:00]} 4. a3 {[%emt 0:00:35]} d5 {[%emt 0:00:48]} 5. cxd5 {[%emt 0:01:13]} Nxd5 {[%emt 0:00:04]} 6. e4 {[%emt 0:00:44]} Nb6 {[%emt 0:04:17]} 7. Be3 {[%emt 0:00:37]} Be7 {[%emt 0:02:13]} 8. Be2 {[%emt 0:02:40]} O-O {[%emt 0:00:14]} 9. O-O {[%emt 0:01:05]} Be6 {[%emt 0:08:30]} 10. Nbd2 {[%emt 0:02:33]} a5 {[%emt 0:01:50]} 11. Rc1 {[%emt 0:04:51]} a4 {[%emt 0:01:14]} 12. Rxc6 {[%emt 0:01:48]} bxc6 {[%emt 0:00:06]} 13. Nxe5 {[%emt 0:00:03]} Bf6 {[%emt 0:01:51]} 14. Ndf3 {[%emt 0:01:22]} Qc8 {[%emt 0:13:46]} 15. Qd2 {[%emt 0:01:30]} Qb7 {[%emt 0:00:50]} 16. Rc1 {[%emt 0:01:49]} Nd7 {[%emt 0:00:46]} 17. Nxd7 {[%emt 0:11:36]} Bxd7 {[%emt 0:00:04]} 18. Bc5 {[%emt 0:06:06]} Qxb2 {[%emt 0:01:24]} 19. Rc2 {[%emt 0:02:10]} Qa1+ {[%emt 0:01:01]} 20. Rc1 {[%emt 0:00:02]} Qb2 {[%emt 0:00:06]} 21. Rc2 {[%emt 0:00:37]} Qa1+ {[%emt 0:00:02]} 22. Rc1 {[%emt 0:01:00]} Qb2 {[%emt 0:00:01]} 23. Rc2 {[%emt 0:00:16]} 1/2-1/2